bitfinex/quotes_SOLUSD_20220211
["timestamp","ask_amount","ask_price","bid_price","bid_amount"]
[1644602178666,4.77009119,105.74,105.67,51.19961661]
[1644602179467,30.00313416,105.73,105.67,51.19961661]
[1644602179764,30.00313416,105.73,105.67,56.17961661]
[1644602181169,4.77009119,105.74,105.67,112.80961661]
[1644602181373,14.1918,105.76,105.68,12.06131041]
[1644602181374,4.77009119,105.76,105.68,12.06131041]
[1644602181569,4.77009119,105.76,105.7,14.1895]
[1644602181570,0.04009119,105.75,105.7,14.1895]
[1644602181768,4.73,105.76,105.7,19.1685]
[1644602181769,4.77009119,105.76,105.7,19.1685]
[1644602182172,49.46942542,105.76,105.7,62.09856351]
[1644602182776,49.46942542,105.76,105.7,19.1685]
[1644602182972,49.46942542,105.76,105.7,18.9185]
[1644602183172,49.46942542,105.76,105.7,19.1685]
[1644602183372,49.46942542,105.76,105.72,14.189]
[1644602183574,44.73942542,105.76,105.72,14.189]
[1644602183973,4.728,105.75,105.7,4.729]
[1644602184373,4.728,105.75,105.7,18.921]
[1644602184573,4.728,105.75,105.7,4.729]
[1644602184774,33.65847112,105.74,105.7,4.729]
[1644602184975,33.15847112,105.74,105.7,4.729]
[1644602185975,33.15847112,105.74,105.69,14.1926]
[1644602186574,33.15847112,105.74,105.69,62.30419087]
[1644602187475,0.04009119,105.75,105.69,62.30419087]
[1644602187675,24.75899119,105.76,105.71,14.1895]
[1644602187878,0.04009119,105.75,105.71,14.1895]
[1644602188075,24.7189,105.76,105.71,14.1895]
[1644602188278,29.48699119,105.76,105.71,14.1895]
[1644602188477,74.28375686,105.76,105.71,60.8873025]
[1644602189378,69.55575686,105.76,105.71,60.8873025]
[1644602189777,14.1902,105.77,105.71,60.8873025]
[1644602189978,0.04009119,105.78,105.72,4.728]
[1644602190178,27.32049119,105.81,105.72,4.728]
[1644602190379,0.04009119,105.78,105.73,14.1869]
[1644602190580,0.04009119,105.8,105.73,20.1869]
[1644602190781,31.73145821,105.78,105.73,20.1869]
[1644602191184,31.73145821,105.78,105.73,14.1869]
[1644602191380,31.73145821,105.78,105.72,43.7811]
[1644602191582,31.7715494,105.78,105.72,43.7811]
[1644602192281,31.7715494,105.78,105.72,18.9172]
[1644602192683,4.728,105.77,105.72,18.9172]
[1644602193885,42.73880602,105.76,105.72,18.9172]
[1644602195488,42.73880602,105.76,105.72,14.1892]
[1644602197588,42.73880602,105.76,105.71,14.1906]
[1644602197788,47.46680602,105.76,105.71,14.1906]
[1644602197989,42.73880602,105.76,105.69,4.728]
[1644602198189,4.76909119,105.75,105.69,4.728]
[1644602198388,35.11899933,105.74,105.69,18.9215]
[1644602198593,35.11899933,105.74,105.67,14.98131041]
[1644602198594,4.729,105.73,105.67,1.33131041]
[1644602198791,4.76909119,105.73,105.66,26.32941041]
[1644602198992,4.76909119,105.73,105.66,1.33131041]
[1644602199394,0.04009119,105.73,105.67,4.73]
[1644602199590,42.73880602,105.72,105.67,4.73]
[1644602199791,42.73880602,105.72,105.67,6.06131041]
[1644602200493,42.73880602,105.72,105.67,4.73]
[1644602200696,42.73880602,105.72,105.68,14.1946]
[1644602201093,42.73880602,105.72,105.67,1.33131041]
[1644602201303,4.73,105.71,105.66,1.33131041]
[1644602201502,4.73,105.71,105.65,1.33131041]
[1644602201717,14.2011,105.7,105.65,1.33131041]
[1644602201916,4.731,105.69,105.64,1.33131041]
[1644602202115,39.84999933,105.69,105.64,1.33131041]
[1644602202316,35.11899933,105.69,105.64,1.33131041]
[1644602202517,4.731,105.68,105.64,1.33131041]
[1644602202717,38.49752195,105.67,105.64,1.33131041]
[1644602203118,5.56439994,105.66,105.64,1.33131041]
[1644602203322,39.3602834,105.65,105.64,1.83131041]
[1644602203518,39.3602834,105.65,105.64,1.33131041]
[1644602203720,5.56439994,105.66,105.64,1.33131041]
[1644602204518,5.56439994,105.66,105.63,15.53261041]
[1644602204719,5.56439994,105.66,105.64,0.5]
[1644602204919,5.56439994,105.66,105.64,1.83131041]
[1644602205320,5.56439994,105.66,105.64,0.5]
[1644602205517,14.2019,105.68,105.64,1.83131041]
[1644602205717,43.51080763,105.67,105.64,1.83131041]
[1644602205919,3.03219997,105.66,105.64,1.83131041]
[1644602206118,5.56439994,105.66,105.64,0.5]
[1644602206522,5.56439994,105.66,105.63,1.33131041]
[1644602206722,5.56439994,105.66,105.64,0.5]
[1644602207323,5.56439994,105.66,105.64,1.83131041]
[1644602207622,4.732,105.68,105.64,1.83131041]
[1644602207822,4.732,105.68,105.64,0.5]
[1644602208222,45.65264858,105.68,105.64,0.5]
[1644602209327,4.732,105.68,105.64,0.5]
[1644602209625,4.732,105.68,105.64,1.83131041]
[1644602210225,14.2014,105.69,105.64,1.83131041]
[1644602210527,18.9319,105.7,105.65,42.61968019]
[1644602210726,42.1414242,105.71,105.65,42.61968019]
[1644602211528,42.1414242,105.71,105.64,1.33131041]
[1644602211728,56.3399242,105.71,105.64,15.53111041]
[1644602211931,56.3399242,105.71,105.64,14.1998]
[1644602212128,56.3399242,105.71,105.63,1.33131041]
[1644602212527,56.3399242,105.71,105.63,36.82696985]
[1644602213328,56.3399242,105.71,105.63,1.33131041]
[1644602213730,72.37359211,105.71,105.62,1.33131041]
[1644602213929,72.37359211,105.71,105.61,6.06231041]
[1644602214130,82.88659211,105.71,105.61,1.33131041]
[1644602214534,82.88659211,105.71,105.6,41.8216758]
[1644602214729,82.88659211,105.71,105.61,6.0]
[1644602217035,82.88659211,105.71,105.6,1.33131041]
[1644602218533,82.88659211,105.71,105.59,20.26981041]
[1644602220133,82.88659211,105.71,105.59,6.06331041]
[1644602221136,82.88659211,105.71,105.59,1.33131041]
[1644602222039,82.88659211,105.71,105.6,45.21586528]
[1644602222237,67.64259211,105.71,105.6,49.94786528]
[1644602222436,65.2589242,105.71,105.6,49.94786528]
[1644602222938,65.2589242,105.71,105.6,51.27917569]
[1644602223339,65.2589242,105.71,105.6,65.48377569]
[1644602224140,67.64259211,105.71,105.6,65.48377569]
[1644602224339,40.44738115,105.69,105.6,65.48377569]
[1644602224542,37.4104242,105.66,105.6,65.48377569]
[1644602226543,37.4104242,105.66,105.6,60.75177569]
[1644602226843,22.8982,105.68,105.62,14.202]
[1644602227044,23.6627,105.69,105.63,4.732]
[1644602227742,45.13388668,105.68,105.63,45.87983395]
[1644602227942,45.13388668,105.68,105.63,41.14783395]
[1644602228442,45.13388668,105.68,105.63,42.47914436]
[1644602228742,59.33588668,105.68,105.63,56.68044436]
[1644602229142,59.33588668,105.68,105.63,15.53261041]
[1644602230248,64.06788668,105.68,105.63,15.53261041]
[1644602230745,59.33588668,105.68,105.64,36.70353981]
[1644602231352,59.33588668,105.68,105.63,20.26461041]
[1644602231549,64.06788668,105.68,105.63,15.53261041]
[1644602232952,64.06788668,105.68,105.63,1.33131041]
[1644602234256,64.06788668,105.68,105.62,44.36856686]
[1644602234559,64.06788668,105.68,105.62,1.33131041]
[1644602235476,59.33588668,105.68,105.62,1.33131041]
[1644602235682,59.33588668,105.68,105.63,42.4104341]
[1644602235883,59.33588668,105.68,105.63,48.47374451]
[1644602236076,59.33588668,105.68,105.63,43.74174451]
[1644602236277,64.06788668,105.68,105.63,43.74174451]
[1644602237175,64.06788668,105.68,105.63,1.33131041]
[1644602237976,64.06788668,105.68,105.61,6.0]
[1644602237977,59.33588668,105.68,105.62,1.33131041]
[1644602238176,4.732,105.67,105.62,1.33131041]
[1644602238376,46.93051867,105.66,105.62,1.33131041]
[1644602243489,4.733,105.65,105.62,1.33131041]
[1644602243787,44.52335902,105.64,105.62,1.33131041]
[1644602243989,2.53219997,105.63,105.62,1.33131041]
[1644602249096,2.53219997,105.63,105.62,1.83131041]
[1644602249493,4.733,105.63,105.6,0.024]
[1644602249693,4.733,105.63,105.59,4.733]
[1644602250398,31.50313592,105.62,105.59,4.733]
[1644602250596,45.71343592,105.62,105.59,4.733]
[1644602250796,50.44743592,105.62,105.59,4.733]
[1644602251000,45.71343592,105.62,105.59,4.733]
[1644602252600,45.71343592,105.62,105.59,4.683]
[1644602252800,31.50313592,105.62,105.59,4.683]
[1644602253102,3.03219997,105.61,105.58,0.024]
[1644602253299,3.03219997,105.6,105.58,4.78130366]
[1644602253899,31.50313592,105.62,105.58,4.78130366]
[1644602254701,31.50313592,105.62,105.58,14.2072]
[1644602259609,36.23713592,105.62,105.58,14.2072]
[1644602261212,50.44653592,105.62,105.57,17.12540602]
[1644602261415,45.71253592,105.62,105.58,4.76112186]
[1644602261825,45.71253592,105.62,105.57,14.4834]
[1644602262928,45.71253592,105.62,105.57,0.024]
[1644602263128,4.735,105.61,105.57,0.024]
[1644602263328,14.2122,105.6,105.57,0.024]
[1644602263530,3.03219997,105.59,105.56,29.2591]
[1644602263728,44.52335902,105.6,105.56,4.759]
[1644602263928,44.52335902,105.6,105.56,4.735]
[1644602264729,44.52335902,105.6,105.56,18.9449]
[1644602266134,44.52335902,105.6,105.56,14.2099]
[1644602267330,44.52335902,105.6,105.56,18.9449]
[1644602267632,14.2109,105.61,105.56,54.66701049]
[1644602267831,4.735,105.62,105.56,50.20601049]
[1644602268130,4.735,105.62,105.58,14.2074]
[1644602268332,4.735,105.63,105.58,14.2074]
[1644602268533,4.735,105.63,105.58,14.2314]
[1644602268733,46.23325216,105.62,105.58,14.2314]
[1644602268930,4.734,105.61,105.58,0.024]
[1644602269130,6.06439994,105.6,105.57,14.2094]
[1644602269432,3.03219997,105.6,105.57,14.2094]
[1644602269631,28.0332,105.67,105.58,10.76199811]
[1644602269833,4.734,105.63,105.58,6.0]
[1644602270032,14.2055,105.65,105.59,0.024]
[1644602270232,14.2055,105.65,105.58,6.0]
[1644602270433,38.09322366,105.64,105.59,0.024]
[1644602270632,38.09322366,105.64,105.59,14.2064]
[1644602270833,38.09322366,105.64,105.59,14.2304]
[1644602273136,38.09322366,105.64,105.59,18.9644]
[1644602273742,52.29952366,105.64,105.59,18.9644]
[1644602274438,38.09322366,105.64,105.59,18.9644]
[1644602275541,4.734,105.63,105.59,14.2304]
[1644602275741,4.734,105.63,105.59,14.2064]
[1644602275941,4.734,105.63,105.58,14.2321]
[1644602276244,4.734,105.63,105.58,0.024]
[1644602276442,18.9417,105.63,105.58,0.024]
[1644602276641,37.93327128,105.62,105.58,0.024]
[1644602276842,37.93327128,105.62,105.58,9.52396824]
[1644602277042,37.93327128,105.62,105.58,4.758]
[1644602277340,37.93327128,105.62,105.58,0.024]
[1644602277544,37.93327128,105.62,105.58,4.79044645]
[1644602277747,52.14227128,105.62,105.58,18.99904645]
[1644602277942,52.14227128,105.62,105.58,18.9666]
[1644602278142,52.14227128,105.62,105.58,14.2326]
[1644602278852,52.14227128,105.62,105.58,0.024]
[1644602281348,52.14227128,105.62,105.58,14.2326]
[1644602281545,52.14227128,105.62,105.58,14.2086]
[1644602283646,37.93327128,105.62,105.58,14.2086]
[1644602286565,22.6273,105.63,105.58,14.2086]
[1644602287552,69.76312833,105.63,105.58,14.2086]
[1644602288653,83.97062833,105.63,105.58,14.2086]
[1644602288852,4.734,105.62,105.58,14.2086]
[1644602289055,4.734,105.62,105.57,14.2336]
[1644602289257,4.734,105.62,105.57,0.024]
[1644602289454,4.734,105.62,105.57,4.79206254]
[1644602289654,28.89066661,105.61,105.57,4.79206254]
[1644602289854,14.2122,105.6,105.57,4.79206254]
[1644602290054,6.06439994,105.59,105.57,4.79206254]
[1644602290256,6.06439994,105.59,105.56,4.734]
[1644602290955,40.54835642,105.58,105.56,4.734]
[1644602291155,40.54835642,105.58,105.55,16.87850602]
[1644602291358,40.54835642,105.58,105.56,4.7671679]
[1644602292055,3.03219997,105.57,105.56,4.7671679]
[1644602292256,3.03219997,105.57,105.55,14.2365]
[1644602292459,3.03219997,105.57,105.55,14.2125]
[1644602292658,3.03219997,105.56,105.55,14.2125]
[1644602292857,4.736,105.6,105.55,18.9485]
[1644602293058,4.736,105.6,105.57,14.2094]
[1644602293258,4.736,105.6,105.58,4.735]
[1644602293663,4.736,105.6,105.57,4.735]
[1644602293859,4.736,105.6,105.57,40.76263473]
[1644602294163,4.736,105.6,105.57,41.01263473]
[1644602294558,4.736,105.6,105.58,14.2086]
[1644602295058,24.0519,105.64,105.58,14.2086]
[1644602295258,24.0519,105.64,105.59,6.0]
[1644602295680,42.96579885,105.65,105.6,35.14004878]
[1644602295880,42.96579885,105.65,105.6,35.16404878]
[1644602296281,42.96579885,105.65,105.6,0.024]
[1644602296683,42.96579885,105.65,105.6,14.2281]
[1644602296884,4.733,105.64,105.6,14.2281]
[1644602297283,33.06069609,105.63,105.6,14.2281]
[1644602297484,6.06439994,105.62,105.6,14.2281]
[1644602297685,6.06439994,105.62,105.6,14.2041]
[1644602300183,40.68357414,105.64,105.6,14.2041]
[1644602305488,4.733,105.64,105.6,14.2041]
[1644602305891,16.58956791,105.65,105.6,14.2041]
[1644602306090,16.58956791,105.65,105.6,14.2281]
[1644602306390,38.82331546,105.64,105.6,14.2281]
[1644602306590,43.55631546,105.64,105.6,14.2281]
[1644602307294,57.76261546,105.64,105.6,14.2281]
[1644602307993,18.9393,105.64,105.6,14.2281]
[1644602308691,4.733,105.64,105.6,14.2281]
[1644602308892,48.09550992,105.64,105.6,14.2281]
[1644602310394,62.30170992,105.64,105.6,14.2281]
[1644602310998,4.733,105.63,105.6,0.024]
[1644602311295,3.03219997,105.62,105.58,4.757]
[1644602311496,4.734,105.61,105.59,0.024]
[1644602311694,3.03219997,105.6,105.58,4.733]
[1644602312095,3.03219997,105.6,105.59,6.0]
[1644602312295,51.60858502,105.62,105.57,6.024]
[1644602312496,46.87358502,105.62,105.58,4.735]
[1644602312695,46.87358502,105.62,105.59,6.0]
[1644602313297,4.734,105.62,105.59,6.0]
[1644602313796,4.734,105.62,105.58,6.024]
[1644602313997,38.4833,105.63,105.58,10.758]
[1644602314296,43.40442366,105.62,105.58,10.758]
[1644602314602,48.13842366,105.62,105.58,10.758]
[1644602314795,48.13842366,105.62,105.59,14.2075]
[1644602315797,6.06439994,105.61,105.6,6.0]
[1644602316598,43.40442366,105.62,105.59,14.2075]
[1644602317800,48.13842366,105.62,105.59,14.2075]
[1644602317999,4.734,105.62,105.59,14.2075]
[1644602318604,6.06439994,105.61,105.59,14.2075]
[1644602321505,14.2078,105.63,105.59,14.2075]
[1644602321706,57.60865478,105.64,105.59,14.2075]
[1644602321906,57.60865478,105.64,105.59,14.2315]
[1644602322108,52.87465478,105.64,105.59,18.9655]
[1644602322306,4.734,105.63,105.6,45.83133713]
[1644602322509,23.3582,105.66,105.6,45.83133713]
[1644602322707,23.3582,105.66,105.6,60.03643713]
[1644602323307,57.84590386,105.66,105.6,60.03643713]
[1644602323708,14.2051,105.65,105.6,60.03643713]
[1644602323911,23.7992,105.68,105.63,14.2015]
[1644602324210,28.5312,105.68,105.63,24.4475]
[1644602324608,28.5312,105.68,105.63,69.84288285]
[1644602326913,23.7992,105.68,105.63,69.84288285]
[1644602327918,23.7992,105.68,105.63,74.57488285]
[1644602330136,37.06581172,105.67,105.63,74.57488285]
[1644602330332,37.06581172,105.67,105.63,29.1795]
[1644602330534,37.06581172,105.67,105.63,19.1835]
[1644602331535,23.7992,105.68,105.63,19.1835]
[1644602332535,23.7992,105.68,105.64,45.71008694]
[1644602332738,23.7992,105.68,105.65,14.1995]
[1644602333437,81.87748665,105.69,105.65,14.1995]
[1644602336241,81.87748665,105.69,105.66,6.0]
[1644602336442,6.06439994,105.68,105.66,6.0]
[1644602337544,10.79539994,105.68,105.6,54.70390602]
[1644602337741,10.79539994,105.68,105.59,27.6066]
[1644602337742,24.0213,105.67,105.59,27.6066]
[1644602337942,24.0213,105.67,105.59,22.8746]
[1644602338344,31.28980829,105.66,105.59,22.8746]
[1644602338545,31.28980829,105.66,105.6,4.733]
[1644602338946,24.0213,105.67,105.6,59.3488618]
[1644602339347,24.0213,105.67,105.61,6.0]
[1644602339544,24.0213,105.67,105.62,4.733]
[1644602339947,36.15566536,105.66,105.62,4.733]
[1644602340147,40.88866536,105.66,105.61,22.6689]
[1644602340748,40.88866536,105.66,105.61,36.8705]
[1644602340953,24.0213,105.67,105.62,36.38512179]
[1644602341148,4.77309119,105.7,105.62,93.01512179]
[1644602341447,22.5767,105.72,105.63,106.18969945]
[1644602341448,0.04009119,105.71,105.63,106.18969945]
[1644602341648,0.04009119,105.71,105.63,101.43816791]
[1644602341847,0.04009119,105.73,105.66,45.5265734]
[1644602342050,0.04009119,105.7,105.66,68.4741734]
[1644602342347,0.04009119,105.73,105.68,35.74968451]
[1644602342547,80.03936208,105.74,105.68,35.74968451]
[1644602342749,80.03936208,105.74,105.69,4.729]
[1644602342948,79.99927089,105.74,105.69,4.729]
[1644602345250,79.99927089,105.74,105.7,40.65594402]
[1644602345452,48.3805,105.74,105.7,40.65594402]
[1644602346155,24.69179119,105.76,105.7,40.65594402]
[1644602346356,24.69179119,105.76,105.71,4.728]
[1644602346554,24.6517,105.76,105.72,46.01834785]
[1644602346953,54.5689698,105.76,105.71,4.728]
[1644602347158,4.728,105.75,105.7,14.4389]
[1644602347360,4.728,105.75,105.68,24.9858]
[1644602347556,0.04009119,105.75,105.69,4.729]
[1644602347756,56.9927289,105.76,105.69,4.729]
[1644602347958,0.04009119,105.75,105.69,0.25]
[1644602348159,0.04009119,105.76,105.69,0.25]
[1644602348357,0.04009119,105.75,105.7,4.729]
[1644602348559,0.04009119,105.76,105.7,4.729]
[1644602348757,4.76809119,105.79,105.71,29.0825]
[1644602348957,0.04009119,105.76,105.72,49.8932266]
[1644602349157,39.07817672,105.78,105.72,49.8932266]
[1644602350659,4.728,105.77,105.72,49.8932266]
[1644602351362,4.728,105.77,105.72,4.728]
[1644602352563,36.98840941,105.76,105.69,14.1901]
[1644602352760,35.00139193,105.74,105.7,6.0]
[1644602352961,4.729,105.73,105.68,34.45405883]
[1644602354363,58.39729193,105.74,105.68,34.45405883]
[1644602354563,4.729,105.73,105.68,34.45405883]
[1644602356786,58.39729193,105.74,105.68,34.45405883]
[1644602356985,58.39729193,105.74,105.68,48.64645883]
[1644602357185,23.3959,105.74,105.68,48.64645883]
[1644602358187,65.63058731,105.74,105.68,48.64645883]
[1644602359993,65.63058731,105.74,105.66,38.7736]
[1644602360192,0.04009119,105.73,105.66,38.7736]
[1644602360791,8.4237591,105.73,105.65,4.729]
[1644602360991,67.48869882,105.72,105.66,6.0]
[1644602361195,67.44860763,105.72,105.65,41.2972865]
[1644602361394,67.48869882,105.72,105.65,41.2972865]
[1644602362393,67.48869882,105.72,105.65,36.5682865]
[1644602362796,81.68749882,105.72,105.65,36.5682865]
[1644602363197,81.68749882,105.72,105.64,37.218]
[1644602363398,84.07116673,105.72,105.65,4.731]
[1644602363798,13.65,105.71,105.65,4.731]
[1644602363997,14.2032,105.69,105.65,4.731]
[1644602364196,1.69706353,105.67,105.65,4.731]
[1644602364396,1.69706353,105.67,105.61,39.06094194]
[1644602364397,10.79639994,105.66,105.61,39.06094194]
[1644602365196,6.06439994,105.66,105.61,57.99674194]
[1644602365797,6.06439994,105.66,105.61,18.9358]
[1644602365997,6.06439994,105.66,105.61,4.733]
[1644602366198,4.733,105.65,105.61,4.733]
[1644602366601,4.733,105.66,105.61,4.733]
[1644602367002,47.18814372,105.65,105.61,4.733]
[1644602367305,6.0,105.65,105.61,4.733]
[1644602367705,22.945,105.67,105.61,4.733]
[1644602367907,10.733,105.66,105.6,48.52201626]
[1644602368306,40.62382526,105.65,105.6,48.52201626]
[1644602368509,40.62382526,105.65,105.59,18.9621]
[1644602369506,40.62382526,105.65,105.59,66.19071815]
[1644602372310,54.82992526,105.65,105.59,20.30245414]
[1644602372510,54.82992526,105.65,105.59,6.09735414]
[1644602372713,10.733,105.64,105.59,4.757]
[1644602373313,35.40266968,105.63,105.59,4.757]
[1644602373513,40.62382526,105.61,105.59,4.733]
[1644602373816,6.06439994,105.6,105.59,4.757]
[1644602374014,6.06439994,105.6,105.59,4.733]
[1644602377521,6.06439994,105.6,105.57,0.024]
[1644602377722,6.06439994,105.6,105.56,4.735]
[1644602378722,6.06439994,105.6,105.56,6.07535414]
[1644602378923,6.06439994,105.6,105.56,4.735]
[1644602380125,6.06439994,105.6,105.55,1.34035414]
[1644602380326,6.06439994,105.6,105.54,15.57625414]
[1644602380527,6.06439994,105.6,105.55,1.34035414]
[1644602381524,35.40266968,105.59,105.55,1.34035414]
[1644602382145,35.40266968,105.59,105.54,1.36435414]
[1644602383247,14.2128,105.6,105.54,1.36435414]
[1644602383446,14.2128,105.6,105.55,4.736]
[1644602383644,14.2128,105.6,105.55,6.07635414]
[1644602384248,50.27669397,105.6,105.55,49.84898974]
[1644602385246,14.2128,105.6,105.55,49.84898974]
[1644602385446,14.2115,105.61,105.55,49.84898974]
[1644602385647,14.2115,105.61,105.56,0.024]
[1644602385851,29.234,105.63,105.55,106.50298974]
[1644602386049,4.735,105.64,105.56,7.36435414]
[1644602386249,65.80438711,105.65,105.57,45.05511723]
[1644602386450,65.80438711,105.65,105.58,0.024]
[1644602386648,65.80438711,105.65,105.59,40.52093781]
[1644602386848,80.01038711,105.65,105.59,54.75023781]
[1644602387052,29.4709,105.67,105.59,54.75023781]
[1644602387250,29.4709,105.67,105.59,55.00023781]
[1644602387450,29.4709,105.67,105.6,6.0]
[1644602387649,24.7359,105.67,105.6,7.34035414]
[1644602387849,24.7359,105.67,105.6,7.59035414]
[1644602388049,24.7359,105.67,105.61,34.54272618]
[1644602388251,24.7359,105.67,105.61,48.74512618]
[1644602388850,0.04009119,105.69,105.61,48.74512618]
[1644602389054,0.04009119,105.69,105.62,4.732]
[1644602389250,72.1501,105.71,105.62,15.895]
[1644602389251,0.04009119,105.7,105.62,15.895]
[1644602389451,0.04009119,105.69,105.63,14.1992]
[1644602389652,0.04009119,105.69,105.64,4.731]
[1644602389950,18.97029119,105.7,105.65,46.80715037]
[1644602390151,0.04009119,105.69,105.65,46.80715037]
[1644602390351,18.9302,105.7,105.65,46.80715037]
[1644602390551,18.9302,105.7,105.65,51.53815037]
[1644602391151,57.83891113,105.7,105.64,14.1989]
[1644602392152,57.83891113,105.7,105.64,52.4947657]
[1644602392351,57.83891113,105.7,105.64,14.1989]
[1644602392554,57.83891113,105.7,105.63,6.07135414]
[1644602392753,14.2048,105.68,105.62,12.25335414]
[1644602392955,4.732,105.67,105.62,10.913]
[1644602393452,37.11778381,105.66,105.62,10.913]
[1644602393654,4.733,105.65,105.62,10.913]
[1644602393852,6.06439994,105.64,105.62,10.913]
[1644602395953,44.97311107,105.64,105.62,10.913]
[1644602396552,6.06439994,105.64,105.62,10.913]
[1644602397054,22.8777,105.67,105.62,10.913]
[1644602397555,4.732,105.66,105.62,10.913]
[1644602398856,18.9367,105.66,105.62,10.913]
[1644602400159,17.9367,105.66,105.62,10.913]
[1644602400860,17.9367,105.66,105.59,1.34035414]
[1644602401061,17.9367,105.66,105.58,1.36435414]
[1644602401262,17.9367,105.66,105.58,1.34035414]
[1644602401463,17.9367,105.66,105.58,37.42308343]
[1644602401662,6.0,105.65,105.58,37.42308343]
[1644602401860,43.98714948,105.63,105.58,37.42308343]
[1644602403070,14.2097,105.63,105.58,37.42308343]
[1644602403274,14.2097,105.63,105.59,1.34035414]
[1644602403773,24.8761,105.65,105.59,1.34035414]
[1644602403971,28.9264,105.66,105.6,1.34035414]
[1644602404177,24.1924,105.66,105.6,1.34035414]
[1644602404372,24.1924,105.66,105.61,1.34035414]
[1644602404573,28.0885,105.68,105.61,1.34035414]
[1644602404574,23.3545,105.68,105.61,1.34035414]
[1644602404775,14.2016,105.68,105.62,6.07235414]
[1644602404971,14.2016,105.68,105.62,1.34035414]
[1644602404972,18.9336,105.68,105.62,1.34035414]
[1644602405171,14.2016,105.68,105.63,4.732]
[1644602405376,42.43447318,105.67,105.63,4.732]
[1644602405573,4.732,105.66,105.62,46.04083029]
[1644602405774,4.732,105.66,105.62,41.30883029]
[1644602405976,18.9366,105.66,105.61,1.34035414]
[1644602406174,42.43447318,105.67,105.61,1.34035414]
[1644602406377,42.43447318,105.67,105.62,1.34035414]
[1644602406575,28.76899119,105.71,105.62,1.34035414]
[1644602406774,28.76899119,105.71,105.62,15.54165414]
[1644602407377,28.7289,105.71,105.62,15.54165414]
[1644602407579,28.7289,105.71,105.63,43.69074781]
[1644602407777,14.2003,105.69,105.64,4.731]
[1644602408195,14.24093574,105.69,105.64,4.731]
[1644602408796,0.04063574,105.69,105.64,4.731]
[1644602408996,14.199,105.7,105.64,18.93]
[1644602409195,0.04063574,105.69,105.64,18.93]
[1644602409397,4.731,105.7,105.64,15.78935414]
[1644602409696,4.731,105.7,105.64,15.53935414]
[1644602409995,18.9299,105.7,105.64,15.53935414]
[1644602410895,4.731,105.7,105.64,15.53935414]
[1644602411097,24.03653574,105.71,105.65,4.731]
[1644602411397,24.03653574,105.71,105.66,14.196]
[1644602411601,23.9959,105.71,105.66,14.196]
[1644602411996,23.9959,105.71,105.67,38.43186119]
[1644602412499,14.23693574,105.72,105.67,38.43186119]
[1644602412700,14.1963,105.72,105.67,49.21586119]
[1644602413600,18.96673574,105.73,105.67,63.41096119]
[1644602415102,4.77163574,105.73,105.67,63.41096119]
[1644602415303,4.77163574,105.73,105.68,20.1926]
[1644602415503,4.77063574,105.76,105.68,20.1926]
[1644602415703,0.04063574,105.75,105.69,4.729]
[1644602415908,4.73,105.76,105.69,4.729]
[1644602415909,0.04063574,105.76,105.69,4.729]
[1644602416105,0.04063574,105.75,105.69,4.979]
[1644602416303,0.04063574,105.76,105.69,4.979]
[1644602416504,0.04063574,105.75,105.7,6.0]
[1644602416707,0.04063574,105.76,105.7,20.44]
[1644602417106,4.76963574,105.78,105.7,20.44]
[1644602417305,0.04063574,105.76,105.7,20.44]
[1644602417505,4.728,105.79,105.71,42.71364493]
[1644602417506,4.76863574,105.79,105.71,42.71364493]
[1644602417705,0.04063574,105.76,105.71,42.71364493]
[1644602417907,0.04063574,105.78,105.71,42.71364493]
[1644602418105,4.728,105.77,105.71,42.71364493]
[1644602418308,4.76863574,105.77,105.71,42.71364493]
[1644602418507,0.04063574,105.77,105.71,42.71364493]
[1644602418705,4.728,105.76,105.71,56.90244493]
[1644602418905,24.95733574,105.78,105.71,56.90244493]
[1644602420108,24.95733574,105.78,105.71,61.63044493]
[1644602420408,18.95733574,105.78,105.71,61.63044493]
[1644602421108,18.95733574,105.78,105.71,69.15344493]
[1644602422508,14.22933574,105.78,105.71,69.15344493]
[1644602423523,14.22933574,105.78,105.71,61.63044493]
[1644602426648,16.61300365,105.78,105.71,47.44164493]